lending/lending_fUSD_20240219
["ID","MTS","AMOUNT","RATE_DAILY","PERIOD"]
[314506577,1708378256296,-500.0,0.00047123,30]
[314506578,1708378256305,-500.0,0.00047123,30]
[314506579,1708378256314,-500.0,0.00047123,30]
[314506580,1708378256323,-500.0,0.00047123,30]
[314506581,1708378256332,-570.76,0.00047123,30]
[314506582,1708378256341,-500.0,0.00047123,30]
[314506583,1708378256350,-500.0,0.00047123,30]
[314506584,1708378256359,-500.0,0.00047123,30]
[314506585,1708378256368,-500.0,0.00047123,30]
[314506586,1708378256377,-500.0,0.00047123,30]
[314506587,1708378256386,-500.0,0.00047123,30]
[314506588,1708378256395,-500.0,0.00047123,30]
[314506589,1708378256404,-500.0,0.00047123,30]
[314506590,1708378256414,-500.0,0.00047123,30]
[314506591,1708378256422,-500.0,0.00047123,30]
[314506592,1708378256431,-500.0,0.00047123,30]
[314506593,1708378256440,-500.0,0.00047123,30]
[314506594,1708378256449,-500.0,0.00047123,30]
[314506595,1708378256458,-551.99,0.00047123,30]
[314506596,1708378256468,-500.0,0.00047123,30]
[314506597,1708378256477,-500.0,0.00047123,30]
[314506598,1708378256486,-500.0,0.00047123,30]
[314506599,1708378256496,-500.0,0.00047123,30]
[314506600,1708378256504,-500.0,0.00047123,30]
[314506601,1708378256513,-500.0,0.00047123,30]
[314506602,1708378256523,-500.0,0.00047123,30]
[314506603,1708378256532,-500.0,0.00047123,30]
[314506604,1708378256541,-500.0,0.00047123,30]
[314506605,1708378256550,-500.0,0.00047123,30]
[314506606,1708378256559,-501.96,0.00047123,30]
[314506607,1708378256568,-500.0,0.00047123,30]
[314506608,1708378256577,-500.0,0.00047123,30]
[314506609,1708378256586,-500.0,0.00047123,30]
[314506610,1708378256595,-1055.55,0.00047123,30]
[314506611,1708378256605,-500.0,0.00047123,30]
[314506612,1708378256614,-500.0,0.00047123,30]
[314506613,1708378256623,-500.0,0.00047123,30]
[314506614,1708378256632,-1053.87,0.00047123,30]
[314506615,1708378256641,-500.0,0.00047123,30]
[314506616,1708378256651,-885.63,0.00047123,30]
[314506617,1708378256659,-500.0,0.00047123,30]
[314506618,1708378256669,-500.0,0.00047123,30]
[314506619,1708378256678,-500.0,0.00047123,30]
[314506620,1708378256687,-547.27823,0.00047123,30]
[314506621,1708378256696,-500.0,0.00047123,30]
[314506622,1708378256705,-500.0,0.00047123,30]
[314506623,1708378256714,-1946.34,0.00047123,30]
[314506624,1708378256723,-500.0,0.00047123,30]
[314506625,1708378256732,-1181.82,0.00047123,30]
[314506626,1708378256740,-500.0,0.00047123,30]
[314506627,1708378256750,-500.0,0.00047123,30]
[314506628,1708378256763,-1706.97,0.00047123,30]
[314506629,1708378256772,-1056.83,0.00047123,30]
[314506630,1708378256781,-500.0,0.00047123,30]
[314506631,1708378256790,-8268.96,0.00047123,30]
[314506632,1708378256800,-254.76,0.00047123,30]
[314506633,1708378256809,-219.9,0.00047123,30]
[314506634,1708378256818,-500.0,0.00047123,2]
[314506635,1708378256828,-426.77,0.00047123,30]
[314506636,1708378256837,-500.0,0.00047123,30]
[314506637,1708378256848,-500.0,0.00047123,30]
[314506638,1708378256857,-550.51,0.00047123,30]
[314506639,1708378256866,-500.0,0.00047123,30]
[314506640,1708378256875,-500.0,0.00047123,30]
[314506641,1708378256884,-500.0,0.00047123,30]
[314506642,1708378256894,-1596.86,0.00047123,30]
[314506643,1708378256903,-621.93157297,0.00047123,30]
[314506644,1708378256913,-1325.65,0.00047123,30]
[314506645,1708378256922,-713.28,0.00047123,30]
[314506646,1708378256931,-500.0,0.00047123,30]
[314506647,1708378256940,-695.11,0.00047123,30]
[314506648,1708378256950,-603.45,0.00047123,30]
[314506649,1708378256959,-500.0,0.00047123,30]
[314506650,1708378256968,-2195.2,0.00047123,30]
[314506651,1708378256978,-1556.15,0.00047123,30]
[314506652,1708378256987,-500.0,0.00047123,30]
[314506653,1708378256996,-947.74,0.00047123,30]
[314506654,1708378257005,-500.0,0.00047123,30]
[314506655,1708378257015,-1791.71,0.00047123,30]
[314506656,1708378257024,-500.0,0.00047123,30]
[314506657,1708378257034,-3566.95,0.00047123,30]
[314506658,1708378257043,-500.0,0.00047123,30]
[314506659,1708378257051,-1316.43,0.00047123,30]
[314506660,1708378257060,-841.6,0.00047123,30]
[314506661,1708378257070,-251.9485716,0.00047123,30]
[314506662,1708378257080,-500.0,0.00047123,30]
[314506663,1708378257089,-1280.74,0.00047123,30]
[314506664,1708378257099,-18426.89,0.00047123,30]
[314506665,1708378257108,-1010.76,0.00047123,30]
[314506666,1708378257118,-500.0,0.00047123,30]
[314506667,1708378257128,-885.16,0.00047123,30]
[314506668,1708378257137,-500.0,0.00047123,30]
[314506669,1708378257146,-500.0,0.00047123,30]
[314506670,1708378257156,-1538.6,0.00047123,30]
[314506671,1708378257165,-747.64,0.00047123,30]
[314506672,1708378257175,-1186.66,0.00047123,30]
[314506673,1708378257184,-946.11,0.00047123,30]
[314506674,1708378257194,-1095.22,0.00047123,30]
[314506675,1708378257203,-500.0,0.00047123,30]
[314506676,1708378257213,-500.0,0.00047123,30]
[314506677,1708378257222,-500.0,0.00047123,30]
[314506678,1708378257232,-500.0,0.00047123,30]
[314506679,1708378257242,-536.42,0.00047123,30]
[314506680,1708378257252,-500.0,0.00047123,30]
[314506681,1708378257262,-500.0,0.00047123,30]
[314506682,1708378257271,-1136.16,0.00047123,30]
[314506683,1708378257281,-6609.47,0.00047123,30]
[314506684,1708378257291,-1468.29,0.00047123,30]
[314506685,1708378257301,-500.0,0.00047123,30]
[314506686,1708378257310,-500.0,0.00047123,30]
[314506687,1708378257318,-500.0,0.00047123,30]
[314506688,1708378257328,-668.15,0.00047123,30]
[314506689,1708378257337,-929.27,0.00047123,30]
[314506690,1708378257347,-273.36283262,0.00047123,30]
[314506691,1708378257356,-500.0,0.00047123,30]
[314506692,1708378257365,-634.08,0.00047123,30]
[314506693,1708378257374,-500.0,0.00047123,30]
[314506694,1708378257383,-896.45,0.00047123,30]
[314506695,1708378257392,-500.0,0.00047123,30]
[314506696,1708378257401,-500.0,0.00047123,30]
[314506697,1708378257410,-1328.4,0.00047123,30]
[314506698,1708378257419,-781.17,0.00047123,30]
[314506699,1708378257428,-500.0,0.00047123,30]
[314506700,1708378257437,-808.14,0.00047123,30]
[314506701,1708378257446,-2516.47,0.00047123,30]
[314506702,1708378257455,-500.0,0.00047123,30]
[314506703,1708378257464,-652.17,0.00047123,30]
[314506704,1708378257473,-567.06,0.00047123,30]
[314506705,1708378257482,-721.84,0.00047123,30]
[314506706,1708378257491,-500.0,0.00047123,30]
[314506707,1708378257501,-5232.16,0.00047123,30]
[314506708,1708378257510,-500.0,0.00047123,30]
[314506709,1708378257519,-827.49,0.00047123,30]
[314506710,1708378257528,-509.98,0.00047123,30]
[314506711,1708378257537,-500.0,0.00047123,30]
[314506712,1708378257546,-676.76,0.00047123,30]
[314506713,1708378257555,-500.0,0.00047123,30]
[314506714,1708378257564,-500.0,0.00047123,30]
[314506715,1708378257573,-627.95,0.00047123,30]
[314506716,1708378257582,-500.0,0.00047123,30]
[314506717,1708378257591,-931.02,0.00047123,30]
[314506718,1708378257600,-500.0,0.00047123,30]
[314506719,1708378257609,-500.0,0.00047123,30]
[314506720,1708378257618,-2919.49,0.00047123,30]
[314506721,1708378257627,-770.48,0.00047123,30]
[314506722,1708378257636,-1508.0,0.00047123,30]
[314506723,1708378257645,-667.93,0.00047123,30]
[314506724,1708378257654,-500.0,0.00047123,30]
[314506725,1708378257663,-2082.95,0.00047123,30]
[314506726,1708378257672,-879.08,0.00047123,30]
[314506727,1708378257681,-2826.01,0.00047123,30]
[314506728,1708378257690,-176.55859048,0.00047123,30]
[314506729,1708378257700,-500.0,0.00047123,30]
[314506730,1708378257709,-682.03,0.00047123,30]
[314506731,1708378257718,-754.56,0.00047123,30]
[314506732,1708378257727,-500.0,0.00047123,30]
[314506733,1708378257736,-500.0,0.00047123,30]
[314506734,1708378257745,-935.53,0.00047123,30]
[314506735,1708378257755,-500.0,0.00047123,30]
[314506736,1708378257768,-500.0,0.00047123,30]
[314506737,1708378257777,-681.27,0.00047123,30]
[314506738,1708378257786,-621.53,0.00047123,30]
[314506739,1708378257795,-500.0,0.00047123,30]
[314506740,1708378257806,-500.0,0.00047123,30]
[314506741,1708378257815,-2727.92,0.00047123,30]
[314506742,1708378257825,-3736.72,0.00047123,30]
[314506743,1708378257834,-2391.1,0.00047123,30]
[314506744,1708378257845,-500.0,0.00047123,30]
[314506745,1708378257856,-911.34,0.00047123,30]
[314506746,1708378257865,-500.0,0.00047123,30]
[314506747,1708378257874,-1344.48,0.00047123,30]
[314506748,1708378257884,-621.49,0.00047123,30]
[314506749,1708378257893,-1570.11,0.00047123,30]
[314506750,1708378257905,-500.0,0.00047123,30]
[314506751,1708378257915,-1652.53,0.00047123,30]
[314506752,1708378257924,-3859.16,0.00047123,30]
[314506753,1708378257933,-500.0,0.00047123,30]
[314506754,1708378257942,-663.1,0.00047123,30]
[314506755,1708378257952,-985.06,0.00047123,30]
[314506756,1708378257961,-500.0,0.00047123,30]
[314506757,1708378257970,-852.41,0.00047123,30]
[314506758,1708378257980,-500.0,0.00047123,30]
[314506759,1708378257989,-996.52,0.00047123,30]
[314506760,1708378257998,-1485.86,0.00047123,30]
[314506761,1708378258007,-798.22,0.00047123,30]
[314506762,1708378258016,-500.0,0.00047123,30]
[314506763,1708378258026,-568.62,0.00047123,30]
[314506764,1708378258035,-1191.69,0.00047123,30]
[314506765,1708378258044,-500.0,0.00047123,30]
[314506766,1708378258053,-5758.48,0.00047123,30]
[314506767,1708378258063,-805.12,0.00047123,30]
[314506768,1708378258072,-500.0,0.00047123,30]
[314506769,1708378258081,-500.0,0.00047123,30]
[314506770,1708378258090,-736.93,0.00047123,30]
[314506771,1708378258101,-557.43,0.00047123,30]
[314506772,1708378258110,-960.56,0.00047123,30]
[314506773,1708378258119,-767.8,0.00047123,30]
[314506774,1708378258128,-694.18,0.00047123,30]
[314506775,1708378258138,-500.0,0.00047123,30]
[314506776,1708378258147,-615.5,0.00047123,30]
[314506777,1708378258156,-948.13,0.00047123,30]
[314506778,1708378258165,-500.0,0.00047123,30]
[314506779,1708378258175,-500.0,0.00047123,30]
[314506780,1708378258184,-500.0,0.00047123,30]
[314506781,1708378258193,-606.15,0.00047123,30]
[314506782,1708378258203,-500.0,0.00047123,30]
[314506783,1708378258212,-1500.42,0.00047123,30]
[314506784,1708378258221,-580.28,0.00047123,30]
[314506785,1708378258231,-2154.3,0.00047123,30]
[314506786,1708378258240,-500.0,0.00047123,30]
[314506787,1708378258249,-500.0,0.00047123,30]
[314506788,1708378258258,-500.0,0.00047123,30]
[314506789,1708378258267,-1136.93,0.00047123,30]
[314506790,1708378258277,-185.31,0.00047123,30]
[314506791,1708378258286,-618.37,0.00047123,30]
[314506792,1708378258295,-500.0,0.00047123,30]
[314506793,1708378258304,-500.0,0.00047123,30]
[314506794,1708378258313,-500.0,0.00047123,30]
[314506795,1708378258322,-730.88,0.00047123,30]
[314506796,1708378258332,-752.2,0.00047123,30]
[314506797,1708378258341,-539.17,0.00047123,30]
[314506798,1708378258352,-500.0,0.00047123,30]
[314506799,1708378258361,-500.0,0.00047123,30]
[314506800,1708378258370,-500.0,0.00047123,30]
[314506801,1708378258379,-622.72,0.00047123,30]
[314506802,1708378258389,-500.0,0.00047123,30]
[314506803,1708378258398,-500.0,0.00047123,30]
[314506804,1708378258407,-500.0,0.00047123,30]
[314506805,1708378258416,-500.0,0.00047123,30]
[314506806,1708378258426,-500.0,0.00047123,30]
[314506807,1708378258435,-500.0,0.00047123,30]
[314506808,1708378258444,-818.54,0.00047123,30]
[314506809,1708378258453,-4432.09,0.00047123,30]
[314506810,1708378258462,-620.54,0.00047123,30]
[314506811,1708378258472,-500.0,0.00047123,30]
[314506812,1708378258481,-603.0,0.00047123,30]
[314506813,1708378258490,-304.96113588,0.00047123,30]
[314506814,1708378258500,-794.43,0.00047123,30]
[314506815,1708378258509,-500.0,0.00047123,30]
[314506816,1708378258518,-500.0,0.00047123,30]
[314506817,1708378258527,-686.83,0.00047123,30]
[314506818,1708378258635,-3549.13,0.00047123,5]
[314506819,1708378258650,-151.022088,0.00047198,38]
[314506820,1708378258659,-7238.28,0.000472,7]
[314506821,1708378258669,-150.06910513,0.00047237,30]
[314506822,1708378258678,-6134.1903,0.00047297,2]
[314506823,1708378258687,-3420.4971,0.00047297,2]
[314506824,1708378258696,-500.0,0.00047397,30]
[314506825,1708378258706,-500.0,0.00047397,30]
[314506826,1708378258715,-500.0,0.00047397,30]
[314506827,1708378258724,-500.0,0.00047397,30]
[314506828,1708378258733,-500.0,0.00047397,30]
[314506829,1708378258742,-500.0,0.00047397,30]
[314506830,1708378258752,-500.0,0.00047397,30]
[314506831,1708378258764,-500.0,0.00047397,30]
[314506832,1708378258773,-209.64,0.00047397,30]
[314506833,1708378258783,-500.0,0.00047397,30]
[314506834,1708378258792,-500.0,0.00047397,30]
[314506835,1708378258802,-500.0,0.00047397,30]
[314506836,1708378258811,-500.0,0.00047397,30]
[314506837,1708378258820,-500.0,0.00047397,30]
[314506838,1708378258830,-500.0,0.00047397,30]
[314506839,1708378258840,-500.0,0.00047397,30]
[314506840,1708378258850,-500.0,0.00047397,30]
[314506841,1708378258859,-500.0,0.00047397,30]
[314506842,1708378258868,-500.0,0.00047397,30]
[314506843,1708378258877,-500.0,0.00047397,30]
[314506844,1708378258887,-500.0,0.00047397,30]
[314506845,1708378258897,-499.50885873,0.00047397,30]
[314506846,1708378258907,-500.0,0.00047397,30]
[314506847,1708378258917,-495.0927648,0.00047397,30]
[314506848,1708378258927,-500.0,0.00047397,7]
[314506849,1708378258937,-500.0,0.00047397,30]
[314506850,1708378258946,-500.0,0.00047397,30]
[314506851,1708378258955,-500.0,0.00047397,30]
[314506852,1708378258964,-500.0,0.00047397,30]
[314506853,1708378258974,-500.0,0.00047397,30]
[314506854,1708378258983,-500.0,0.00047397,30]
[314506855,1708378258993,-500.0,0.00047397,30]
[314506856,1708378259002,-500.0,0.00047397,30]
[314506857,1708378259012,-500.0,0.00047397,30]
[314506858,1708378259021,-500.0,0.00047397,30]
[314506859,1708378259031,-500.0,0.00047397,30]
[314506860,1708378259040,-500.0,0.00047397,30]
[314506861,1708378259049,-500.0,0.00047397,30]
[314506862,1708378259059,-500.0,0.00047397,30]
[314506863,1708378259068,-500.0,0.00047397,30]
[314506864,1708378259078,-500.0,0.00047397,30]
[314506865,1708378259088,-500.0,0.00047397,30]
[314506866,1708378259097,-500.0,0.00047397,30]
[314506867,1708378259108,-500.0,0.00047397,30]
[314506868,1708378259118,-500.0,0.00047397,30]
[314506869,1708378259127,-500.0,0.00047397,30]
[314506870,1708378259137,-500.0,0.00047397,30]
[314506871,1708378259146,-500.0,0.00047397,30]
[314506872,1708378259155,-549.41,0.00047397,30]
[314506873,1708378259165,-500.0,0.00047397,2]
[314506874,1708378259175,-500.0,0.00047397,30]
[314506875,1708378259184,-500.0,0.00047397,30]
[314506876,1708378259193,-500.0,0.00047397,30]
[314506877,1708378259203,-500.0,0.00047397,30]
[314506878,1708378259212,-564.0049443,0.00047397,30]
[314506879,1708378259221,-500.0,0.00047397,30]
[314506880,1708378259231,-500.0,0.00047397,30]
[314506881,1708378259240,-500.0,0.00047397,30]
[314506882,1708378259250,-500.0,0.00047397,30]
[314506883,1708378259259,-500.0,0.00047397,30]
[314506884,1708378259269,-523.47353641,0.00047397,30]
[314506885,1708378259279,-500.0,0.00047397,30]
[314506886,1708378259288,-500.0,0.00047397,30]
[314506887,1708378259297,-500.0,0.00047397,30]
[314506888,1708378259307,-500.0,0.00047397,30]
[314506889,1708378259317,-500.0,0.00047397,30]
[314506890,1708378259326,-500.0,0.00047397,30]
[314506891,1708378259335,-500.0,0.00047397,30]
[314506892,1708378259345,-500.0,0.00047397,30]
[314506893,1708378259356,-613.78,0.00047397,30]
[314506894,1708378259366,-500.0,0.00047397,30]
[314506895,1708378259376,-500.0,0.00047397,30]
[314506896,1708378259385,-500.0,0.00047397,30]
[314506897,1708378259394,-500.0,0.00047397,30]
[314506898,1708378259404,-500.0,0.00047397,30]
[314506899,1708378259413,-500.0,0.00047397,30]
[314506900,1708378259423,-500.0,0.00047397,30]
[314506901,1708378259432,-500.0,0.00047397,30]
[314506902,1708378259442,-500.0,0.00047397,30]
[314506903,1708378259452,-193.32,0.00047397,30]
[314506904,1708378259461,-500.0,0.00047397,30]
[314506905,1708378259471,-500.0,0.00047397,30]
[314506906,1708378259480,-500.0,0.00047397,30]
[314506907,1708378259490,-443.28091948,0.00047397,30]
[314506908,1708378259499,-500.0,0.00047397,30]
[314506909,1708378259509,-500.0,0.00047397,30]
[314506910,1708378259518,-500.0,0.00047397,30]
[314506911,1708378259527,-500.0,0.00047397,30]
[314506912,1708378259536,-455.52378603,0.00047397,30]
[314506913,1708378259546,-500.0,0.00047397,30]
[314506914,1708378259555,-500.0,0.00047397,30]
[314506915,1708378259564,-500.0,0.00047397,30]
[314506916,1708378259573,-180.25172183,0.00047397,30]
[314506917,1708378259582,-550.81,0.00047397,30]
[314506918,1708378259591,-295.72483582,0.00047397,30]
[314506919,1708378259601,-500.0,0.00047397,30]
[314506920,1708378259610,-500.0,0.00047397,30]
[314506921,1708378259619,-500.0,0.00047397,30]
[314506922,1708378259628,-164.65,0.00047397,30]
[314506923,1708378259638,-500.0,0.00047397,30]
[314506924,1708378259646,-500.0,0.00047397,30]
[314506925,1708378259656,-500.0,0.00047397,30]
[314506926,1708378259665,-500.0,0.00047397,30]
[314506927,1708378259674,-500.0,0.00047397,30]
[314506928,1708378259683,-500.0,0.00047397,30]
[314506929,1708378259693,-500.0,0.00047397,30]
[314506930,1708378259702,-500.0,0.00047397,30]
[314506931,1708378259711,-500.0,0.00047397,2]
[314506932,1708378259720,-500.0,0.00047397,30]
[314506933,1708378259729,-500.0,0.00047397,30]
[314506934,1708378259738,-500.0,0.00047397,30]
[314506935,1708378259748,-500.0,0.00047397,30]
[314506936,1708378259757,-500.0,0.00047397,30]
[314506937,1708378259769,-500.0,0.00047397,30]
[314506938,1708378259779,-500.0,0.00047397,30]
[314506939,1708378259788,-500.0,0.00047397,30]
[314506940,1708378259798,-500.0,0.00047397,30]
[314506941,1708378259807,-631.84,0.00047397,30]
[314506942,1708378259816,-500.0,0.00047397,30]
[314506943,1708378259826,-500.0,0.00047397,30]
[314506944,1708378259837,-500.0,0.00047397,30]
[314506945,1708378259846,-500.0,0.00047397,30]
[314506946,1708378259855,-500.0,0.00047397,30]
[314506947,1708378259864,-500.0,0.00047397,30]
[314506948,1708378259874,-500.0,0.00047397,30]
[314506949,1708378259883,-213.72720034,0.00047397,30]
[314506950,1708378259893,-500.0,0.00047397,30]
[314506951,1708378259903,-500.0,0.00047397,30]
[314506952,1708378259913,-500.0,0.00047397,30]
[314506953,1708378259922,-500.0,0.00047397,30]
[314506954,1708378259933,-500.0,0.00047397,30]
[314506955,1708378259942,-500.0,0.00047397,30]
[314506956,1708378259951,-500.0,0.00047397,30]
[314506957,1708378259961,-500.0,0.00047397,30]
[314506958,1708378259971,-500.0,0.00047397,30]
[314506959,1708378259980,-500.0,0.00047397,30]
[314506960,1708378259989,-500.0,0.00047397,30]
[314506961,1708378259998,-500.0,0.00047397,30]
[314506962,1708378260008,-380.73179058,0.00047397,30]
[314506963,1708378260017,-500.0,0.00047397,30]
[314506964,1708378260026,-500.0,0.00047397,2]
[314506965,1708378260037,-500.0,0.00047397,30]
[314506966,1708378260047,-500.0,0.00047397,30]
[314506967,1708378260056,-500.0,0.00047397,30]
[314506968,1708378260066,-500.0,0.00047397,30]
[314506969,1708378260078,-500.0,0.00047397,30]
[314506970,1708378260087,-500.0,0.00047397,30]
[314506971,1708378260097,-500.0,0.00047397,30]
[314506972,1708378260107,-500.0,0.00047397,30]
[314506973,1708378260117,-500.0,0.00047397,30]
[314506974,1708378260127,-500.0,0.00047397,30]
[314506975,1708378260136,-500.0,0.00047397,30]
[314506976,1708378260146,-500.0,0.00047397,30]
[314506977,1708378260155,-612.02,0.00047397,30]
[314506978,1708378260165,-500.0,0.00047397,30]
[314506979,1708378260175,-500.0,0.00047397,30]
[314506980,1708378260184,-500.0,0.00047397,30]
[314506981,1708378260193,-500.0,0.00047397,30]
[314506982,1708378260203,-558.6,0.00047397,30]
[314506983,1708378260212,-500.0,0.00047397,30]
[314506984,1708378260221,-500.0,0.00047397,30]
[314506985,1708378260231,-500.0,0.00047397,30]
[314506986,1708378260240,-500.0,0.00047397,30]
[314506987,1708378260250,-500.0,0.00047397,30]
[314506988,1708378260259,-500.0,0.00047397,30]
[314506989,1708378260269,-500.0,0.00047397,30]
[314506990,1708378260279,-500.0,0.00047397,30]
[314506991,1708378260288,-500.0,0.00047397,30]
[314506992,1708378260297,-500.0,0.00047397,30]
[314506993,1708378260306,-536.39695419,0.00047397,30]
[314506994,1708378260316,-500.0,0.00047397,30]
[314506995,1708378260325,-150.0,0.00047397,30]
[314506996,1708378260336,-500.0,0.00047397,30]
[314506997,1708378260345,-500.0,0.00047397,30]
[314506998,1708378260357,-500.0,0.00047397,30]
[314506999,1708378260366,-500.0,0.00047397,30]
[314507000,1708378260375,-500.0,0.00047397,30]
[314507001,1708378260385,-500.0,0.00047397,30]
[314507002,1708378260395,-500.0,0.00047397,30]
[314507003,1708378260405,-500.0,0.00047397,30]
[314507004,1708378260414,-500.0,0.00047397,30]
[314507005,1708378260424,-500.0,0.00047397,30]
[314507006,1708378260433,-500.0,0.00047397,30]
[314507007,1708378260443,-500.0,0.00047397,30]
[314507008,1708378260452,-500.0,0.00047397,30]
[314507009,1708378260462,-500.0,0.00047397,30]
[314507010,1708378260471,-500.0,0.00047397,30]
[314507011,1708378260481,-500.0,0.00047397,30]
[314507012,1708378260491,-500.0,0.00047397,30]
[314507013,1708378260500,-500.0,0.00047397,30]
[314507014,1708378260509,-500.0,0.00047397,30]
[314507015,1708378260518,-500.0,0.00047397,30]
[314507016,1708378260528,-500.0,0.00047397,30]
[314507017,1708378260537,-500.0,0.00047397,30]
[314507018,1708378260546,-500.0,0.00047397,30]
[314507019,1708378260555,-500.0,0.00047397,30]
[314507020,1708378260565,-500.0,0.00047397,30]
[314507021,1708378260574,-500.0,0.00047397,30]
[314507022,1708378260583,-551.99,0.00047397,30]
[314507023,1708378260593,-500.0,0.00047397,30]
[314507024,1708378260603,-500.0,0.00047397,30]
[314507025,1708378260614,-500.0,0.00047397,30]
[314507026,1708378260623,-500.0,0.00047397,30]
[314507027,1708378260632,-500.0,0.00047397,30]
[314507028,1708378260641,-500.0,0.00047397,30]
[314507029,1708378260651,-500.0,0.00047397,30]
[314507030,1708378260661,-500.0,0.00047397,30]
[314507031,1708378260670,-501.96,0.00047397,30]
[314507032,1708378260679,-500.0,0.00047397,30]
[314507033,1708378260689,-500.0,0.00047397,30]
[314507034,1708378260698,-500.0,0.00047397,30]
[314507035,1708378260707,-1055.55,0.00047397,30]
[314507036,1708378260928,-500.0,0.00047397,30]
[314507037,1708378260975,-500.0,0.00047397,30]
[314507038,1708378260985,-500.0,0.00047397,30]
[314507039,1708378260995,-1053.87,0.00047397,30]
[314507040,1708378261006,-500.0,0.00047397,30]
[314507041,1708378261015,-885.63,0.00047397,30]
[314507042,1708378261024,-500.0,0.00047397,30]
[314507043,1708378261033,-500.0,0.00047397,30]
[314507044,1708378261043,-500.0,0.00047397,30]
[314507045,1708378261053,-500.0,0.00047397,30]
[314507046,1708378261062,-500.0,0.00047397,30]
[314507047,1708378261072,-1946.34,0.00047397,30]
[314507048,1708378261082,-500.0,0.00047397,30]
[314507049,1708378261091,-1181.82,0.00047397,30]
[314507050,1708378261103,-500.0,0.00047397,30]
[314507051,1708378261113,-500.0,0.00047397,30]
[314507052,1708378261124,-1706.97,0.00047397,30]
[314507053,1708378261133,-1056.83,0.00047397,30]
[314507054,1708378261143,-500.0,0.00047397,30]
[314507055,1708378261153,-8268.96,0.00047397,30]
[314507056,1708378261162,-500.0,0.00047397,2]
[314507057,1708378261171,-500.0,0.00047397,30]
[314507058,1708378261181,-500.0,0.00047397,30]
[314507059,1708378261190,-550.51,0.00047397,30]
[314507060,1708378261200,-500.0,0.00047397,30]
[314507061,1708378261209,-1596.86,0.00047397,30]
[314507062,1708378261219,-500.0,0.00047397,30]
[314507063,1708378261228,-1325.65,0.00047397,30]
[314507064,1708378261238,-713.28,0.00047397,30]
[314507065,1708378261247,-500.0,0.00047397,30]
[314507066,1708378261256,-695.11,0.00047397,30]
[314507067,1708378261266,-500.0,0.00047397,30]
[314507068,1708378261275,-2195.2,0.00047397,30]
[314507069,1708378261285,-1556.15,0.00047397,30]
[314507070,1708378261294,-947.74,0.00047397,30]
[314507071,1708378261303,-500.0,0.00047397,30]
[314507072,1708378261312,-500.0,0.00047397,30]
[314507073,1708378261322,-1791.71,0.00047397,30]
[314507074,1708378261331,-500.0,0.00047397,30]
[314507075,1708378261341,-3566.95,0.00047397,30]
[314507076,1708378261351,-500.0,0.00047397,30]